Workbook

Sheet Данни За Заплати
B1: КАЛКУЛАТОР НА ЗАПЛАТИ | K1: ПЕРИОД, ЗАВЪРШВАЩ НА: | L1: 2013-04-08 | N1: ИМЕ НА ФИРМАТА: | P1: ADVENTURE WORKS
B3: ИД | C3: Име на служител | D3: Изработени редовни часове | E3: Часове почивка | F3: Часове болнични | G3: Часове извънредна работа | H3: Ставка за извънредна работа | I3: Брутна сума за получаване | J3: Данъци и удръжки | K3: Други удръжки | L3: Нетна сума за получаване | N3: Часова ставка | O3: Данъчен статут | P3: Федерална отстъпка | Q3: Местен данък | R3: Данък върху доходите | S3: Данък социална осигуровка | T3: Здравни осигуровки | U3: Общо удържани данъци | V3: Удържане за застраховка | W3: Други стандартни удръжки | X3: Общо стандартни удръжки
B4: 1001 | C4: Мартин Банков | D4: 50 | E4: 5 | F4: 1 | I4: =SUM(Служители[[#This Row],[Изработени редовни часове]:[Часове болнични]])*Служители[[#This Row],[Часова ставка]]+Служители[[#This Row],[Часове извънредна работа]]*Служители[[#This Row],[Ставка за извънредна работа]] -> 560 | J4: =Служители[[#This Row],[Брутна сума за получаване]]*Служители[[#This Row],[Общо удържани данъци]] + Служители[[#This Row],[Общо стандартни удръжки]] -> 273.08 | K4: 20 | L4: =Служители[[#This Row],[Брутна сума за получаване]]-Служители[[#This Row],[Данъци и удръжки]]-Служители[[#This Row],[Други удръжки]] -> 266.92 | N4: 10 | O4: 1 | P4: 4 | Q4: 0.023 | R4: 0.28 | S4: 0.063 | T4: 0.0145 | U4: =SUM(Служители[[#This Row],[Местен данък]:[Здравни осигуровки]]) -> 0.3805 | V4: 20 | W4: 40 | X4: =SUM(Служители[[#This Row],[Удържане за застраховка]:[Други стандартни удръжки]]) -> 60
B5: 1002 | C5: Костадин Христов | D5: 40 | I5: =SUM(Служители[[#This Row],[Изработени редовни часове]:[Часове болнични]])*Служители[[#This Row],[Часова ставка]]+Служители[[#This Row],[Часове извънредна работа]]*Служители[[#This Row],[Ставка за извънредна работа]] -> 320 | J5: =Служители[[#This Row],[Брутна сума за получаване]]*Служители[[#This Row],[Общо удържани данъци]] + Служители[[#This Row],[Общо стандартни удръжки]] -> 131.76 | L5: =Служители[[#This Row],[Брутна сума за получаване]]-Служители[[#This Row],[Данъци и удръжки]]-Служители[[#This Row],[Други удръжки]] -> 188.24 | N5: 8 | O5: 1 | P5: 1 | Q5: 0.023 | R5: 0.28 | S5: 0.063 | T5: 0.0145 | U5: =SUM(Служители[[#This Row],[Местен данък]:[Здравни осигуровки]]) -> 0.3805 | V5: 0 | W5: 10 | X5: =SUM(Служители[[#This Row],[Удържане за застраховка]:[Други стандартни удръжки]]) -> 10
B6: 1003 | C6: Борислав Димитров | D6: 35 | E6: 3 | I6: =SUM(Служители[[#This Row],[Изработени редовни часове]:[Часове болнични]])*Служители[[#This Row],[Часова ставка]]+Служители[[#This Row],[Часове извънредна работа]]*Служители[[#This Row],[Ставка за извънредна работа]] -> 532 | J6: =Служители[[#This Row],[Брутна сума за получаване]]*Служители[[#This Row],[Общо удържани данъци]] + Служители[[#This Row],[Общо стандартни удръжки]] -> 240.426 | L6: =Служители[[#This Row],[Брутна сума за получаване]]-Служители[[#This Row],[Данъци и удръжки]]-Служители[[#This Row],[Други удръжки]] -> 291.574 | N6: 14 | O6: 1 | P6: 3 | Q6: 0.023 | R6: 0.28 | S6: 0.063 | T6: 0.0145 | U6: =SUM(Служители[[#This Row],[Местен данък]:[Здравни осигуровки]]) -> 0.3805 | V6: 18 | W6: 20 | X6: =SUM(Служители[[#This Row],[Удържане за застраховка]:[Други стандартни удръжки]]) -> 38
B7: 1008 | C7: Петър Банков | D7: 50 | E7: 5 | F7: 1 | I7: =SUM(Служители[[#This Row],[Изработени редовни часове]:[Часове болнични]])*Служители[[#This Row],[Часова ставка]]+Служители[[#This Row],[Часове извънредна работа]]*Служители[[#This Row],[Ставка за извънредна работа]] -> 1120 | J7: =Служители[[#This Row],[Брутна сума за получаване]]*Служители[[#This Row],[Общо удържани данъци]] + Служители[[#This Row],[Общо стандартни удръжки]] -> 441.16 | L7: =Служители[[#This Row],[Брутна сума за получаване]]-Служители[[#This Row],[Данъци и удръжки]]-Служители[[#This Row],[Други удръжки]] -> 678.84 | N7: 20 | O7: 1 | P7: 0 | Q7: 0.023 | R7: 0.28 | S7: 0.063 | T7: 0.0145 | U7: =SUM(Служители[[#This Row],[Местен данък]:[Здравни осигуровки]]) -> 0.3805 | V7: 15 | X7: =SUM(Служители[[#This Row],[Удържане за застраховка]:[Други стандартни удръжки]]) -> 15
B8: 1011 | C8: Христина Христозова | D8: 40 | G8: 2 | H8: 15 | I8: =SUM(Служители[[#This Row],[Изработени редовни часове]:[Часове болнични]])*Служители[[#This Row],[Часова ставка]]+Служители[[#This Row],[Часове извънредна работа]]*Служители[[#This Row],[Ставка за извънредна работа]] -> 430 | J8: =Служители[[#This Row],[Брутна сума за получаване]]*Служители[[#This Row],[Общо удържани данъци]] + Служители[[#This Row],[Общо стандартни удръжки]] -> 223.615 | L8: =Служители[[#This Row],[Брутна сума за получаване]]-Служители[[#This Row],[Данъци и удръжки]]-Служители[[#This Row],[Други удръжки]] -> 206.385 | N8: 10 | O8: 1 | P8: 0 | Q8: 0.023 | R8: 0.28 | S8: 0.063 | T8: 0.0145 | U8: =SUM(Служители[[#This Row],[Местен данък]:[Здравни осигуровки]]) -> 0.3805 | V8: 20 | W8: 40 | X8: =SUM(Служители[[#This Row],[Удържане за застраховка]:[Други стандартни удръжки]]) -> 60
B9: 1012 | C9: Теодор Тодоров | D9: 40 | E9: 5 | F9: 1 | I9: =SUM(Служители[[#This Row],[Изработени редовни часове]:[Часове болнични]])*Служители[[#This Row],[Часова ставка]]+Служители[[#This Row],[Часове извънредна работа]]*Служители[[#This Row],[Ставка за извънредна работа]] -> 552 | J9: =Служители[[#This Row],[Брутна сума за получаване]]*Служители[[#This Row],[Общо удържани данъци]] + Служители[[#This Row],[Общо стандартни удръжки]] -> 270.036 | L9: =Служители[[#This Row],[Брутна сума за получаване]]-Служители[[#This Row],[Данъци и удръжки]]-Служители[[#This Row],[Други удръжки]] -> 281.964 | N9: 12 | O9: 1 | P9: 4 | Q9: 0.023 | R9: 0.28 | S9: 0.063 | T9: 0.0145 | U9: =SUM(Служители[[#This Row],[Местен данък]:[Здравни осигуровки]]) -> 0.3805 | V9: 20 | W9: 40 | X9: =SUM(Служители[[#This Row],[Удържане за застраховка]:[Други стандартни удръжки]]) -> 60
B10: 1025 | C10: Вяра Калнъкова | D10: 36 | F10: 2 | G10: 1 | H10: 18 | I10: =SUM(Служители[[#This Row],[Изработени редовни часове]:[Часове болнични]])*Служители[[#This Row],[Часова ставка]]+Служители[[#This Row],[Часове извънредна работа]]*Служители[[#This Row],[Ставка за извънредна работа]] -> 474 | J10: =Служители[[#This Row],[Брутна сума за получаване]]*Служители[[#This Row],[Общо удържани данъци]] + Служители[[#This Row],[Общо стандартни удръжки]] -> 225.357 | K10: 25 | L10: =Служители[[#This Row],[Брутна сума за получаване]]-Служители[[#This Row],[Данъци и удръжки]]-Служители[[#This Row],[Други удръжки]] -> 223.643 | N10: 12 | O10: 1 | P10: 2 | Q10: 0.023 | R10: 0.28 | S10: 0.063 | T10: 0.0145 | U10: =SUM(Служители[[#This Row],[Местен данък]:[Здравни осигуровки]]) -> 0.3805 | V10: 25 | W10: 20 | X10: =SUM(Служители[[#This Row],[Удържане за застраховка]:[Други стандартни удръжки]]) -> 45
B11: 1032 | C11: Ивайло Главчовски | D11: 40 | E11: 5 | F11: 1 | I11: =SUM(Служители[[#This Row],[Изработени редовни часове]:[Часове болнични]])*Служители[[#This Row],[Часова ставка]]+Служители[[#This Row],[Часове извънредна работа]]*Служители[[#This Row],[Ставка за извънредна работа]] -> 460 | J11: =Служители[[#This Row],[Брутна сума за получаване]]*Служители[[#This Row],[Общо удържани данъци]] + Служители[[#This Row],[Общо стандартни удръжки]] -> 175.03 | K11: 50 | L11: =Служители[[#This Row],[Брутна сума за получаване]]-Служители[[#This Row],[Данъци и удръжки]]-Служители[[#This Row],[Други удръжки]] -> 234.97 | N11: 10 | O11: 1 | P11: 3 | Q11: 0.023 | R11: 0.28 | S11: 0.063 | T11: 0.0145 | U11: =SUM(Служители[[#This Row],[Местен данък]:[Здравни осигуровки]]) -> 0.3805 | X11: =SUM(Служители[[#This Row],[Удържане за застраховка]:[Други стандартни удръжки]]) -> 0
B12: 1049 | C12: Станимир Кирилов | D12: 40 | E12: 1 | I12: =SUM(Служители[[#This Row],[Изработени редовни часове]:[Часове болнични]])*Служители[[#This Row],[Часова ставка]]+Служители[[#This Row],[Часове извънредна работа]]*Служители[[#This Row],[Ставка за извънредна работа]] -> 615 | J12: =Служители[[#This Row],[Брутна сума за получаване]]*Служители[[#This Row],[Общо удържани данъци]] + Служители[[#This Row],[Общо стандартни удръжки]] -> 259.0075 | K12: 23 | L12: =Служители[[#This Row],[Брутна сума за получаване]]-Служители[[#This Row],[Данъци и удръжки]]-Служители[[#This Row],[Други удръжки]] -> 332.9925 | N12: 15 | O12: 1 | P12: 2 | Q12: 0.023 | R12: 0.28 | S12: 0.063 | T12: 0.0145 | U12: =SUM(Служители[[#This Row],[Местен данък]:[Здравни осигуровки]]) -> 0.3805 | V12: 25 | X12: =SUM(Служители[[#This Row],[Удържане за застраховка]:[Други стандартни удръжки]]) -> 25
B13: Общи суми | C13: =SUBTOTAL(103,Служители[Име на служител]) -> 9 | D13: =SUBTOTAL(109,Служители[Изработени редовни часове]) -> 371 | E13: =SUBTOTAL(109,Служители[Часове почивка]) -> 24 | F13: =SUBTOTAL(109,Служители[Часове болнични]) -> 6 | G13: =SUBTOTAL(109,Служители[Часове извънредна работа]) -> 3 | I13: =SUBTOTAL(109,Служители[Брутна сума за получаване]) -> 5063 | J13: =SUBTOTAL(109,Служители[Данъци и удръжки]) -> 2239.4715 | K13: =SUBTOTAL(109,Служители[Други удръжки]) -> 118 | L13: =SUBTOTAL(109,Служители[Нетна сума за получаване]) -> 2705.5285 | V13: =SUBTOTAL(109,Служители[Удържане за застраховка]) -> 143 | W13: =SUBTOTAL(109,Служители[Други стандартни удръжки]) -> 170 | X13: =SUBTOTAL(109,Служители[Общо стандартни удръжки]) -> 313

Sheet платежни_шаблон (hidden)
C2: =Име_на_фирма -> ADVENTURE WORKS
C3: ПЕРИОД | D3: =Период_завършващ_на -> 41372 | G3: ИМЕ | H3: =IFERROR(INDEX(Служители[Име на служител],Платежни),"") -> Мартин Банков | K3: ИД НА СЛУЖИТЕЛ | L3: =IFERROR(INDEX(Служители[ИД],Платежни),"") -> 1001
C4: Данъчен статут | E4: =IFERROR(INDEX(Служители[Данъчен статут],Платежни),"") -> 1 | G4: Федерална отстъпка (от W-4) | I4: =IFERROR(INDEX(Служители[Федерална отстъпка],Платежни),"") -> 4 | K4: Изработени часове | M4: =IFERROR(INDEX(Служители[Изработени редовни часове],Платежни),"") -> 50
C5: Часова ставка | E5: =IFERROR(INDEX(Служители[Часова ставка],Платежни),"") -> 10 | G5: Ставка за извънредна работа | I5: =IFERROR(INDEX(Служители[Ставка за извънредна работа],Платежни),"") -> 0 | K5: Часове болнични | M5: =IFERROR(INDEX(Служители[Часове болнични],Платежни),"") -> 1
C6: Данък социална осигуровка | E6: =IFERROR(INDEX(Служители[Данък социална осигуровка],Платежни) * INDEX(Служители[Брутна сума за получаване],Платежни),"") -> 35.28 | G6: Данък върху доходите | I6: =IFERROR(INDEX(Служители[Данък върху доходите],Платежни) * INDEX(Служители[Брутна сума за получаване],Платежни),"") -> 156.8 | K6: Часове почивка | M6: =IFERROR(INDEX(Служители[Часове почивка],Платежни),"") -> 5
C7: Здравни осигуровки | E7: =IFERROR(INDEX(Служители[Здравни осигуровки],Платежни) * INDEX(Служители[Брутна сума за получаване],Платежни),"") -> 8.12 | G7: Местен данък | I7: =IFERROR(INDEX(Служители[Местен данък],Платежни) * INDEX(Служители[Брутна сума за получаване],Платежни),"") -> 12.88 | K7: Часове извънредна работа | M7: =IFERROR(INDEX(Служители[Часове извънредна работа],Платежни),"") -> 0
C8: Удържане за застраховка | E8: =IFERROR(INDEX(Служители[Удържане за застраховка],Платежни),"") -> 20 | G8: Други стандартни удръжки | I8: =IFERROR(INDEX(Служители[Други стандартни удръжки],Платежни),"") -> 40 | K8: Брутна сума за получаване | M8: =IFERROR(INDEX(Служители[Брутна сума за получаване],Платежни),"") -> 560
C9: Общо данъци | E9: =IFERROR(INDEX(Служители[Данъци и удръжки],Платежни),"") -> 273.08 | G9: Други удръжки | I9: =IFERROR(INDEX(Служители[Други удръжки],Платежни),"") -> 20 | K9: Общо данъци и удръжки | M9: =IFERROR(INDEX(Служители[Данъци и удръжки],Платежни) + INDEX(Служители[Други удръжки],Платежни),"") -> 293.08
C10: и стандартни удръжки
K11: НЕТНА СУМА ЗА ПОЛУЧАВАНЕ | M11: =IFERROR(INDEX(Служители[Нетна сума за получаване],Платежни),"") -> 266.92
C14: =Име_на_фирма -> ADVENTURE WORKS
C15: ПЕРИОД | D15: =Период_завършващ_на -> 41372 | G15: ИМЕ | H15: =IFERROR(INDEX(Служители[Име на служител],Платежни),"") -> Костадин Христов | K15: ИД НА СЛУЖИТЕЛ | L15: =IFERROR(INDEX(Служители[ИД],Платежни),"") -> 1002
C16: Данъчен статут | E16: =IFERROR(INDEX(Служители[Данъчен статут],Платежни),"") -> 1 | G16: Федерална отстъпка (от W-4) | I16: =IFERROR(INDEX(Служители[Федерална отстъпка],Платежни),"") -> 1 | K16: Изработени часове | M16: =IFERROR(INDEX(Служители[Изработени редовни часове],Платежни),"") -> 40
C17: Часова ставка | E17: =IFERROR(INDEX(Служители[Часова ставка],Платежни),"") -> 8 | G17: Ставка за извънредна работа | I17: =IFERROR(INDEX(Служители[Ставка за извънредна работа],Платежни),"") -> 0 | K17: Часове болнични | M17: =IFERROR(INDEX(Служители[Часове болнични],Платежни),"") -> 0
C18: Данък социална осигуровка | E18: =IFERROR(INDEX(Служители[Данък социална осигуровка],Платежни) * INDEX(Служители[Брутна сума за получаване],Платежни),"") -> 20.16 | G18: Данък върху доходите | I18: =IFERROR(INDEX(Служители[Данък върху доходите],Платежни) * INDEX(Служители[Брутна сума за получаване],Платежни),"") -> 89.6 | K18: Часове почивка | M18: =IFERROR(INDEX(Служители[Часове почивка],Платежни),"") -> 0
C19: Здравни осигуровки | E19: =IFERROR(INDEX(Служители[Здравни осигуровки],Платежни) * INDEX(Служители[Брутна сума за получаване],Платежни),"") -> 4.64 | G19: Местен данък | I19: =IFERROR(INDEX(Служители[Местен данък],Платежни) * INDEX(Служители[Брутна сума за получаване],Платежни),"") -> 7.36 | K19: Часове извънредна работа | M19: =IFERROR(INDEX(Служители[Часове извънредна работа],Платежни),"") -> 0
C20: Удържане за застраховка | E20: =IFERROR(INDEX(Служители[Удържане за застраховка],Платежни),"") -> 0 | G20: Други стандартни удръжки | I20: =IFERROR(INDEX(Служители[Други стандартни удръжки],Платежни),"") -> 10 | K20: Брутна сума за получаване | M20: =IFERROR(INDEX(Служители[Брутна сума за получаване],Платежни),"") -> 320
C21: Общо данъци | E21: =IFERROR(INDEX(Служители[Данъци и удръжки],Платежни),"") -> 131.76 | G21: Други удръжки | I21: =IFERROR(INDEX(Служители[Други удръжки],Платежни),"") -> 0 | K21: Общо данъци и удръжки | M21: =IFERROR(INDEX(Служители[Данъци и удръжки],Платежни) + INDEX(Служители[Други удръжки],Платежни),"") -> 131.76
C22: и стандартни удръжки
K23: НЕТНА СУМА ЗА ПОЛУЧАВАНЕ | M23: =IFERROR(INDEX(Служители[Нетна сума за получаване],Платежни),"") -> 188.24
C26: =Име_на_фирма -> ADVENTURE WORKS
C27: ПЕРИОД | D27: =Период_завършващ_на -> 41372 | G27: ИМЕ | H27: =IFERROR(INDEX(Служители[Име на служител],Платежни),"") -> Борислав Димитров | K27: ИД НА СЛУЖИТЕЛ | L27: =IFERROR(INDEX(Служители[ИД],Платежни),"") -> 1003
C28: Данъчен статут | E28: =IFERROR(INDEX(Служители[Данъчен статут],Платежни),"") -> 1 | G28: Федерална отстъпка (от W-4) | I28: =IFERROR(INDEX(Служители[Федерална отстъпка],Платежни),"") -> 3 | K28: Изработени часове | M28: =IFERROR(INDEX(Служители[Изработени редовни часове],Платежни),"") -> 35
C29: Часова ставка | E29: =IFERROR(INDEX(Служители[Часова ставка],Платежни),"") -> 14 | G29: Ставка за извънредна работа | I29: =IFERROR(INDEX(Служители[Ставка за извънредна работа],Платежни),"") -> 0 | K29: Часове болнични | M29: =IFERROR(INDEX(Служители[Часове болнични],Платежни),"") -> 0
C30: Данък социална осигуровка | E30: =IFERROR(INDEX(Служители[Данък социална осигуровка],Платежни) * INDEX(Служители[Брутна сума за получаване],Платежни),"") -> 33.516 | G30: Данък върху доходите | I30: =IFERROR(INDEX(Служители[Данък върху доходите],Платежни) * INDEX(Служители[Брутна сума за получаване],Платежни),"") -> 148.96 | K30: Часове почивка | M30: =IFERROR(INDEX(Служители[Часове почивка],Платежни),"") -> 3
C31: Здравни осигуровки | E31: =IFERROR(INDEX(Служители[Здравни осигуровки],Платежни) * INDEX(Служители[Брутна сума за получаване],Платежни),"") -> 7.714 | G31: Местен данък | I31: =IFERROR(INDEX(Служители[Местен данък],Платежни) * INDEX(Служители[Брутна сума за получаване],Платежни),"") -> 12.236 | K31: Часове извънредна работа | M31: =IFERROR(INDEX(Служители[Часове извънредна работа],Платежни),"") -> 0
C32: Удържане за застраховка | E32: =IFERROR(INDEX(Служители[Удържане за застраховка],Платежни),"") -> 18 | G32: Други стандартни удръжки | I32: =IFERROR(INDEX(Служители[Други стандартни удръжки],Платежни),"") -> 20 | K32: Брутна сума за получаване | M32: =IFERROR(INDEX(Служители[Брутна сума за получаване],Платежни),"") -> 532
C33: Общо данъци | E33: =IFERROR(INDEX(Служители[Данъци и удръжки],Платежни),"") -> 240.426 | G33: Други удръжки | I33: =IFERROR(INDEX(Служители[Други удръжки],Платежни),"") -> 0 | K33: Общо данъци и удръжки | M33: =IFERROR(INDEX(Служители[Данъци и удръжки],Платежни) + INDEX(Служители[Други удръжки],Платежни),"") -> 240.426
C34: и стандартни удръжки
K35: НЕТНА СУМА ЗА ПОЛУЧАВАНЕ | M35: =IFERROR(INDEX(Служители[Нетна сума за получаване],Платежни),"") -> 291.574
C38: =Име_на_фирма -> ADVENTURE WORKS
C39: ПЕРИОД | D39: =Период_завършващ_на -> 41372 | G39: ИМЕ | H39: =IFERROR(INDEX(Служители[Име на служител],Платежни),"") -> Петър Банков | K39: ИД НА СЛУЖИТЕЛ | L39: =IFERROR(INDEX(Служители[ИД],Платежни),"") -> 1008
C40: Данъчен статут | E40: =IFERROR(INDEX(Служители[Данъчен статут],Платежни),"") -> 1 | G40: Федерална отстъпка (от W-4) | I40: =IFERROR(INDEX(Служители[Федерална отстъпка],Платежни),"") -> 0 | K40: Изработени часове | M40: =IFERROR(INDEX(Служители[Изработени редовни часове],Платежни),"") -> 50
C41: Часова ставка | E41: =IFERROR(INDEX(Служители[Часова ставка],Платежни),"") -> 20 | G41: Ставка за извънредна работа | I41: =IFERROR(INDEX(Служители[Ставка за извънредна работа],Платежни),"") -> 0 | K41: Часове болнични | M41: =IFERROR(INDEX(Служители[Часове болнични],Платежни),"") -> 1
C42: Данък социална осигуровка | E42: =IFERROR(INDEX(Служители[Данък социална осигуровка],Платежни) * INDEX(Служители[Брутна сума за получаване],Платежни),"") -> 70.56 | G42: Данък върху доходите | I42: =IFERROR(INDEX(Служители[Данък върху доходите],Платежни) * INDEX(Служители[Брутна сума за получаване],Платежни),"") -> 313.6 | K42: Часове почивка | M42: =IFERROR(INDEX(Служители[Часове почивка],Платежни),"") -> 5
C43: Здравни осигуровки | E43: =IFERROR(INDEX(Служители[Здравни осигуровки],Платежни) * INDEX(Служители[Брутна сума за получаване],Платежни),"") -> 16.24 | G43: Местен данък | I43: =IFERROR(INDEX(Служители[Местен данък],Платежни) * INDEX(Служители[Брутна сума за получаване],Платежни),"") -> 25.76 | K43: Часове извънредна работа | M43: =IFERROR(INDEX(Служители[Часове извънредна работа],Платежни),"") -> 0
C44: Удържане за застраховка | E44: =IFERROR(INDEX(Служители[Удържане за застраховка],Платежни),"") -> 15 | G44: Други стандартни удръжки | I44: =IFERROR(INDEX(Служители[Други стандартни удръжки],Платежни),"") -> 0 | K44: Брутна сума за получаване | M44: =IFERROR(INDEX(Служители[Брутна сума за получаване],Платежни),"") -> 1120
C45: Общо данъци | E45: =IFERROR(INDEX(Служители[Данъци и удръжки],Платежни),"") -> 441.16 | G45: Други удръжки | I45: =IFERROR(INDEX(Служители[Други удръжки],Платежни),"") -> 0 | K45: Общо данъци и удръжки | M45: =IFERROR(INDEX(Служители[Данъци и удръжки],Платежни) + INDEX(Служители[Други удръжки],Платежни),"") -> 441.16
C46: и стандартни удръжки
K47: НЕТНА СУМА ЗА ПОЛУЧАВАНЕ | M47: =IFERROR(INDEX(Служители[Нетна сума за получаване],Платежни),"") -> 678.84
